{"text_format":"3","workbook":"xlsx","n_sheets":11,"sheets":["Game Types","To Do","Template","New Game","Red Light Green","Sugar Honeycombs","Hopscotch","Russian R","Rock Paper","Squid Game","Game Stats"],"not_rendered":{"images":15,"macros":1},"read":"whole","date_system":"1900"}

{"sheet":"Game Types","index":0,"n_rows":29,"n_cols":6,"rows_kept":29,"hidden":true}
[]
[{"$nulls":3},"Season 1","Season 2"]
[null,null,1,"Red Light - Green Light","Red Light - Green Light"]
[null,null,2,"Sugar Honeycombs","Six Legged Pentathlon (Ddakji, Flying Stone, Gong-gi, Spinning Top, Jegi)"]
[null,null,3,"Tug of War","Mingle"]
[null,null,4,"Marbles","Russian Roulette"]
[null,null,5,"Hopscotch (glass Floor)","Rock Paper Scissors"]
[null,null,6,"Squid Game"]
[]
[]
[{"$nulls":3},"Games Within Excel","Process","Visuals"]
[{"$nulls":3},"Red Light - Green Light","Turn Based with Agression Style","Moving map, count of players, % progress, Time remaining"]
[{"$nulls":3},"Sugar Honeycombs","Turn Based action + 'wetness' of biscuits","Time Remaining, Wetness, Visual of biscuit progress, % progress"]
[{"$nulls":3},"Hopscotch","Turn based waiting game - strategy of when to go","Revealing map, time remaining"]
[{"$nulls":3},"Russian Roulette","Random Chance Based game (50/50)","Visual of gun - showing % chances"]
[{"$nulls":3},"Rock Paper Scissors","Turn Based game - getting to choose outcomes","Visual of your move, visual of oppositon move"]
[{"$nulls":3},"Tug of War","Random Chance Based game (50/50)","Purely a Start button + Image"]
[{"$nulls":3},"Marbles","Random Chance Based game (50/50)","Purely a Start button + Image"]
[{"$nulls":3},"Squid Game","Random Chance Based game (50/50)","Purely a Start button + Image"]
[]
[{"$nulls":3},"Games Ignored","Reason Ignored"]
[{"$nulls":3},"Mingle","Not sure how to code"]
[{"$nulls":3},"Six Legged Pentathlon","Too much reliance on AI"]
[]
[]
[{"$nulls":4},"In General"]
[{"$nulls":4},"Image of game in each section"]
[{"$nulls":4},"Rules of game in each section"]
[{"$nulls":4},"Quit game button - returns to new game tab"]

{"sheet":"To Do","index":1,"n_rows":15,"n_cols":3,"rows_kept":15,"hidden":true}
[]
[null,null,"To Do"]
[null,null,"New Game Tab"]
[null,null,"Red Light - Green Light"]
[null,null,"Sugar Honeycombs"]
[null,null,"Hopscotch"]
[null,null,"Russian Roulette"]
[null,null,"Rock Paper Scissors"]
[null,null,"Tug of War"]
[null,null,"Marbles"]
[null,null,"Squid Game"]
[null,null,"Game Progression Logic (first game set as Red Light/ Green light, last game set as Squid Game - but rest need to be random, but not repeated)"]
[null,null,"End Game Logic"]
[null,null,"Game Reset Logic"]
[null,null,"Win Game logic"]

{"sheet":"Template","index":2,"n_rows":36,"n_cols":49,"rows_kept":36,"hidden":true,"merged":[[1,2,8,9],[1,10,8,32],[1,33,8,40],[1,41,8,48],[9,2,17,48],[18,2,35,30],[18,31,27,48],[28,31,35,48]]}
[null,null,1,{"$f":"C1+1","v":2},{"$f":"D1+1","v":3},4,5,6,7,8,9,10,11,12,13,14,15,16,17,18,19,20,21,22,23,24,25,26,27,28,29,30,31,32,33,34,35,36,37,38,39,40,41,42,43,44,45,46,47]
[null,1,"Red Light\nGreen Light",{"$nulls":7},{"$error":"#VALUE!"},{"$nulls":22},"Players\nRemaining",{"$nulls":7},464]
[null,{"$f":"B2+1","v":2}]
[null,{"$f":"B3+1","v":3}]
[null,4]
[null,5]
[null,6]
[null,7]
[null,8]
[null,9,"Action and Status Area"]
[null,10]
[null,11]
[null,12]
[null,13]
[null,14]
[null,15]
[null,16]
[null,17]
[null,18,"Map or Progess Area",{"$nulls":28},"Time/ Turns Remaining"]
[null,19]
[null,20]
[null,21]
[null,22]
[null,23]
[null,24]
[null,25]
[null,26]
[null,27]
[null,28,{"$nulls":29},"Percentage Progess"]
[null,29]
[null,30]
[null,31]
[null,32]
[null,33]
[null,34]
[null,35]

{"sheet":"New Game","index":3,"n_rows":12,"n_cols":3,"rows_kept":12}
[]
[null,null,"Welcome to the EXCEL Squid Games"]
[null,null," A Turn-based set of games inspired by the Squid Game series"]
[null,null,"Check out my other games here "]
[null,null," I would like to extend a heartfelt welcome to you all."]
[null,null,"Everyone here will participate in six different games over six days."]
[null,null,"Those who win all six games will receive a handsome cash prize."]
[]
[null,null,"Will you go back to living your old and depressing lives being chased in your dreams?"]
[null,null,"Or will you act and seize this last opportunity we’re offering here?"]
[]
[null,null,"LET THE GAMES BEGIN"]

{"sheet":"Red Light Green","index":4,"n_rows":29,"n_cols":56,"rows_kept":29,"hidden":true,"merged":[[1,2,8,9],[1,10,8,32],[1,33,8,40],[1,41,8,48],[10,4,11,9],[10,20,10,47],[11,20,16,47],[12,4,16,9],[18,31,27,37],[18,38,27,48],[28,31,35,48]]}
[]
[null,null,"Red Light\nGreen Light",{"$nulls":7},{"$error":"#VALUE!"},{"$nulls":22},"Players\nRemaining",{"$nulls":7},{"$f":"'Game Stats'!D2","v":286}]
[]
[]
[]
[{"$nulls":55},"Aggressive"]
[{"$nulls":55},"Moderate"]
[{"$nulls":55},"Passive"]
[{"$nulls":55},"Wait"]
[]
[{"$nulls":4},"Select Style",{"$nulls":15},"Information"]
[{"$nulls":20},"Here is the first game. You will be playing Red Light, Green Light.\nYou are allowed to move forward when “it” shouts out, “Green Light,”  stop when “it” shouts, “Red Light.” If your movement is detected afterward, you will be eliminated.\nHint - Select a style in the yellow box to the left. The more aggresive style the further you will travel, but the greater riskof being caught!"]
[{"$nulls":4},"Aggressive"]
[]
[]
[]
[]
[]
[{"$nulls":31},144,{"$nulls":6},"Seconds"]
{"$rows_empty":9}
[{"$nulls":31},{"v":1.1199999999999999,"d":"112.0%"}]

{"sheet":"Sugar Honeycombs","index":5,"n_rows":69,"n_cols":59,"rows_kept":69,"hidden":true,"merged":[[1,2,8,9],[1,10,8,32],[1,33,8,40],[1,41,8,48],[10,4,11,9],[10,20,11,25],[10,27,10,47],[11,27,16,47],[12,4,16,9],[12,20,16,25],[18,2,35,30],[18,31,27,37],[18,38,27,48],[28,31,35,48]]}
[]
[null,null,"Sugar\nHoneycombs",{"$nulls":7},{"$error":"#VALUE!"},{"$nulls":22},"Players\nRemaining",{"$nulls":7},{"$f":"'Game Stats'!D2","v":286}]
[]
[{"$nulls":54},"Chance of Break","Dry","Moist","Soggy","Wet"]
[{"$nulls":54},"Snap",{"v":0.5,"d":"50%"},{"v":0.25,"d":"25%"},{"v":0.25,"d":"25%"},{"v":1,"d":"100%"}]
[{"$nulls":54},"Pick",{"v":0.25,"d":"25%"},{"v":0.1,"d":"10%"},{"v":0.1,"d":"10%"},{"v":0.5,"d":"50%"}]
[{"$nulls":54},"Lick",{"v":0,"d":"0%"},{"v":0,"d":"0%"},{"v":0,"d":"0%"},{"v":1,"d":"100%"}]
[{"$nulls":54},"Wait",{"v":0,"d":"0%"},{"v":0,"d":"0%"},{"v":0,"d":"0%"},{"v":0,"d":"0%"}]
[]
[{"$nulls":54},"Rules"]
[{"$nulls":4},"Select Action",{"$nulls":15},"Wetness",{"$nulls":6},"Information\n",{"$nulls":26},"5% chance of enemy character dying per second played"]
[{"$nulls":27},"The second game is Sugar Honeycombs.\nThe shape you have chosen is the shape you must remove from the honeycomb. You will pass if you trim out the shape without it breaking or cracking within the time limit. With that, let the game begin.\nHint- The wetter the honeycomb the easier it is to manipulate - but be careful, if it gets too wet it will fall apart!",{"$nulls":26},"20-40 seconds per turn"]
[{"$nulls":20},"Dry"]
[{"$nulls":54},"Failure"]
[{"$nulls":54},"Reach 0 time left"]
[{"$nulls":54},"Biscuit Breaks"]
[]
[{"$nulls":54},"Reset Button"]
[null,null,{"$f":"VLOOKUP(AF29,AL64:AM69,2,TRUE)","v":{"$error":"#VALUE!"}},{"$nulls":28},300,{"$nulls":6},"Seconds",{"$nulls":15},"Player Location"]
[{"$nulls":54},"% back to 0"]
[{"$nulls":54},"Time back to 300"]
[{"$nulls":54},"Style Cleared"]
[]
[{"$nulls":54},"End of Turn"]
[{"$nulls":54},"You didn't die"]
[{"$nulls":54},"You moved x% down the board"]
[{"$nulls":54},"X Enemy Players died "]
[{"$nulls":54},"You have x time left"]
[{"$nulls":31},{"v":0,"d":"0.00%"}]
{"$rows_empty":34}
[{"$nulls":37},{"v":0,"d":"0%"},{"$error":"#VALUE!"}]
[{"$nulls":37},{"v":0.15,"d":"15%"},{"$error":"#VALUE!"}]
[{"$nulls":37},{"v":0.3,"d":"30%"},{"$error":"#VALUE!"}]
[{"$nulls":37},{"v":0.45,"d":"45%"},{"$error":"#VALUE!"}]
[{"$nulls":37},{"v":0.6,"d":"60%"},{"$error":"#VALUE!"}]
[{"$nulls":37},{"v":0.9,"d":"90%"},{"$error":"#VALUE!"}]

{"sheet":"Hopscotch","index":6,"n_rows":40,"n_cols":59,"rows_kept":40,"hidden":true,"merged":[[1,2,8,9],[1,10,8,32],[1,33,8,40],[1,41,8,48],[10,4,11,9],[10,20,10,47],[11,20,16,47],[12,4,16,9],[18,31,27,37],[18,38,27,48],[28,31,35,48]]}
[]
[null,null,"Hopscotch",{"$nulls":7},{"$error":"#VALUE!"},{"$nulls":22},"Players\nRemaining",{"$nulls":7},{"$f":"'Game Stats'!D2","v":286}]
[]
[]
[{"$nulls":54},"Left"]
[{"$nulls":54},"Right"]
[{"$nulls":54},"Wait"]
[]
[]
[]
[{"$nulls":4},"Make a choice",{"$nulls":15},"Information"]
[{"$nulls":20},"Hello, players, let me welcome you all to the third game. The third game is Hopscotch.\nThe stepping stones before you are made from one of two types of glass, one will be tempered glass and the other will be normal glass.\nThe tempered glass stepping stone as strong enough to hold the weight of two people. However, the normal glass will break even if just one person steps on it.\nFor this game, you will guess which one of next two tiles is the tile made of the stronger tempered glass, You may then cross over to the other side safely and pass this game. \nHint - Wait a few turns to get other players to reveal the path for you!\n"]
[]
[]
[]
[]
[]
[]
[{"$nulls":31},300,{"$nulls":6},"Seconds"]
[]
[]
[]
[]
[{"$nulls":54},"End of Turn"]
[{"$nulls":54},"You didn't die"]
[{"$nulls":54},"You moved x% down the board"]
[{"$nulls":54},"X Enemy Players died "]
[{"$nulls":54},"You have x time left"]
[{"$nulls":31},{"v":0,"d":"0.00%"},{"$nulls":23},"Path",null,"Known"]
[{"$nulls":55},"L","R","L","R"]
[{"$nulls":54},1,"Yes","No"]
[{"$nulls":54},2,"Yes","No"]
[{"$nulls":54},3,"No","Yes"]
[{"$nulls":54},4,"No","Yes"]
[{"$nulls":54},5,"Yes","No"]
[{"$nulls":54},6,"Yes","No"]
[{"$nulls":54},7,"Yes","Yes",1,1]
[]
[{"$nulls":54},"Enemy Progress",0]
[{"$nulls":54},"Player Progress",0]

{"sheet":"Russian R","index":7,"n_rows":29,"n_cols":55,"rows_kept":29,"hidden":true,"merged":[[1,2,8,9],[1,10,8,32],[1,33,8,40],[1,41,8,48],[10,4,11,9],[10,20,11,25],[10,27,10,47],[11,27,16,47],[12,4,16,9],[12,20,16,25],[18,2,35,30],[18,31,27,37],[18,38,27,48],[28,31,35,48]]}
[]
[null,null,"Russian\nRoulette",{"$nulls":7},{"$error":"#VALUE!"},{"$nulls":22},"Players\nRemaining",{"$nulls":7},{"$f":"'Game Stats'!D2","v":286}]
[]
[]
[{"$nulls":54},1]
[{"$nulls":54},2]
[{"$nulls":54},3]
[{"$nulls":54},4]
[{"$nulls":54},5]
[]
[{"$nulls":4},"Bullet Location",{"$nulls":15},"Odds",{"$nulls":6},"Information"]
[{"$nulls":27},"The Fourth game is Russian Roulette. Choose which chamber the round is in, You go first - if you live then the other player goes. The rounds continue until only one player lives."]
[{"$nulls":20},{"v":0.17,"d":"17%"}]
[]
[]
[]
[]
[]
[null,null,{"$error":"#VALUE!"},{"$nulls":28},1,{"$nulls":6},"Game"]
{"$rows_empty":9}
[{"$nulls":31},"50-50 Chance"]

{"sheet":"Rock Paper","index":8,"n_rows":29,"n_cols":55,"rows_kept":29,"hidden":true,"merged":[[1,2,8,9],[1,10,8,32],[1,33,8,40],[1,41,8,48],[10,4,11,9],[10,20,10,47],[11,20,16,47],[12,4,16,9],[18,2,35,30],[18,31,27,37],[18,38,27,48],[28,31,35,48]]}
[]
[null,null,"Rock\nPaper\nScissors",{"$nulls":7},{"$error":"#VALUE!"},{"$nulls":22},"Players\nRemaining",{"$nulls":7},{"$f":"'Game Stats'!D2","v":286}]
[]
[]
[{"$nulls":54},"Rock"]
[{"$nulls":54},"Paper"]
[{"$nulls":54},"Scissors"]
[]
[]
[]
[{"$nulls":4},"Make a choice",{"$nulls":15},"Information"]
[{"$nulls":20},"The Fifth game is Rock Paper Scissors. A simple game - best your opposition and make it through to the last game!\nRock beasts Scissors\nScissors beat Paper\nPaper beats Rock"]
[]
[]
[]
[]
[]
[]
[null,null,{"$error":"#VALUE!"},{"$nulls":28},1,{"$nulls":6},"Game"]
{"$rows_empty":9}
[{"$nulls":31},"50-50 Chance"]

{"sheet":"Squid Game","index":9,"n_rows":29,"n_cols":55,"rows_kept":29,"hidden":true,"merged":[[1,2,8,9],[1,10,8,32],[1,33,8,40],[1,41,8,48],[10,4,11,9],[10,20,10,47],[11,20,16,47],[12,4,16,9],[18,2,35,30],[18,31,27,37],[18,38,27,48],[28,31,35,37],[28,38,35,48]]}
[]
[null,null,"Squid Game",{"$nulls":7},{"$error":"#VALUE!"},{"$nulls":22},"Players\nRemaining",{"$nulls":7},{"$f":"'Game Stats'!D2","v":286}]
[]
[]
[{"$nulls":54},"Go"]
[]
[]
[]
[]
[]
[{"$nulls":4},"Make a choice",{"$nulls":15},"Information"]
[{"$nulls":20},"Welcome to the last game - Win this and the prize is yours.\nGIVE IT EVERYTHING!"]
[]
[]
[]
[]
[]
[]
[null,null,{"$error":"#VALUE!"},{"$nulls":28},1,{"$nulls":6},"Game"]
{"$rows_empty":9}
[{"$nulls":31},{"$f":"1/AP2","v":{"v":3.4965034965034965E-3,"d":"0%"}},{"$nulls":6},"Chance To Win"]

{"sheet":"Game Stats","index":10,"n_rows":9,"n_cols":5,"rows_kept":9,"hidden":true}
[]
[null,null,"Number of Players",286]
[]
[null,null,"Game 1","Red Light Green","Strategy"]
[null,null,"Game 2","Sugar Honeycombs","Strategy"]
[null,null,"Game 3","Hopscotch","Strategy"]
[null,null,"Game 4","Russian R","Strategy"]
[null,null,"Game 5","Rock Paper","Strategy"]
[null,null,"Game 6","Squid Game","Chance"]